bitfinex/quotes_ETHUSD_20220119
["timestamp","ask_amount","ask_price","bid_price","bid_amount"]
[1642585562716,0.8100961,3086.8,3086.3,0.81413896]
[1642585563221,0.8100961,3086.8,3086.4,0.00341054]
[1642585563419,0.8100961,3086.8,3086.4,1.62361054]
[1642585563817,0.8100961,3086.8,3086.5,0.00284211]
[1642585565266,0.8100961,3086.8,3086.5,1.52474382]
[1642585565566,1.6200931,3087.2,3086.6,0.00227369]
[1642585565769,0.00170528,3087.3,3086.7,0.468]
[1642585566165,0.00113685,3087.2,3086.8,0.00113684]
[1642585566368,0.00113685,3087.2,3086.8,0.46913684]
[1642585566567,0.00284212,3087.5,3086.8,1.46913684]
[1642585566969,0.0022737,3087.4,3086.8,1.46913684]
[1642585567168,0.0022737,3087.4,3086.9,0.1295]
[1642585567368,0.00170528,3087.3,3087.0,1.61982]
[1642585567766,0.00113685,3087.2,3087.0,1.61982]
[1642585568167,0.0022737,3087.4,3087.0,1.61982]
[1642585568567,2.0492934,3087.7,3087.0,1.61982]
[1642585568568,0.00170528,3087.3,3087.0,1.61982]
[1642585569011,1.62122325,3087.2,3087.0,1.61982]
[1642585570213,1.75072325,3087.2,3087.0,1.61982]
[1642585570617,1.75072325,3087.2,3086.8,1.62089684]
[1642585570618,2.70230176,3087.1,3086.8,1.62089684]
[1642585570820,0.9397932,3087.0,3086.8,0.00113684]
[1642585571034,2.58116604,3087.0,3086.8,0.00113684]
[1642585571218,2.58116604,3087.0,3086.2,1.62068]
[1642585571219,7.1,3086.9,3086.2,1.62068]
[1642585571418,1.62079,3086.7,3086.2,1.62068]
[1642585571617,2.88572801,3086.6,3086.3,0.00170527]
[1642585571818,2.75622801,3086.5,3086.3,0.81204527]
[1642585572016,7.3795,3086.4,3086.3,0.81204527]
[1642585572217,10.13572801,3086.4,3086.3,0.81034]
[1642585572417,10.13572801,3086.4,3086.2,1.62068]
[1642585572661,2.75622801,3086.3,3086.2,1.62068]
[1642585572863,5.29223699,3086.3,3086.2,1.62068]
[1642585573167,3.35932551,3086.1,3086.0,1.62069]
[1642585573361,5.81096352,3086.1,3085.7,1.6209]
[1642585573566,0.1296,3086.0,3085.7,1.6209]
[1642585573763,2.75622801,3085.9,3085.7,1.6209]
[1642585573962,2.75622801,3085.9,3085.6,2.1295]
[1642585573963,2.74257186,3085.8,3085.6,2.1295]
[1642585574163,5.95622801,3085.7,3085.6,2.1295]
[1642585574363,8.79718164,3085.7,3085.6,2.1295]
[1642585574566,5.59718164,3085.7,3085.6,2.1295]
[1642585575167,3.18572801,3085.7,3085.6,2.1295]
[1642585576172,2.75622801,3085.7,3085.6,2.1295]
[1642585576622,2.75622801,3085.7,3085.6,0.1295]
[1642585577022,3.05622801,3085.7,3085.6,0.1295]
[1642585579321,4.67719091,3085.7,3085.5,1.62103]
[1642585579523,2.75622801,3085.6,3085.5,1.62103]
[1642585579923,2.75622801,3085.6,3085.5,1.62500897]
[1642585580771,2.88572801,3085.6,3085.5,1.62500897]
[1642585581773,2.75622801,3085.6,3085.5,1.62500897]
[1642585583071,2.88572801,3085.6,3085.5,1.62500897]
[1642585584212,2.75622801,3085.6,3085.5,1.62500897]
[1642585585317,9.44878683,3085.6,3085.5,1.62500897]
[1642585586925,7.1,3085.5,3084.6,3.7517]
[1642585587227,0.84079877,3085.3,3084.7,0.00454738]
[1642585587423,5.71704206,3085.2,3084.7,0.00454738]
[1642585587666,5.71704206,3085.2,3084.4,7.45]
[1642585587667,2.75622801,3085.1,3084.5,0.00568423]
[1642585587868,2.6640596,3085.0,3084.5,0.00568423]
[1642585588069,3.56703801,3084.9,3084.5,0.00568423]
[1642585588270,5.09874543,3084.8,3084.5,0.00568423]
[1642585588469,3.56704021,3084.7,3084.5,0.8108]
[1642585588670,2.75622801,3084.6,3084.5,0.8108]
[1642585589470,0.8108122,3084.7,3084.5,0.8108]
[1642585589869,0.8108122,3084.7,3084.6,0.00511581]
[1642585590073,2.75741249,3084.7,3084.6,0.00511581]
[1642585590371,0.81081,3084.8,3084.6,0.00511581]
[1642585594025,8.85237226,3084.7,3084.6,0.00511581]
[1642585594227,8.89901241,3084.7,3084.6,0.00511581]
[1642585594523,6.53700144,3084.7,3084.6,0.00511581]
[1642585594725,9.05154115,3084.7,3084.6,0.00511581]
[1642585594924,9.05154115,3084.7,3084.3,0.1295]
[1642585594925,9.05154115,3084.7,3084.5,0.00568423]
[1642585595169,9.05154115,3084.7,3084.4,0.00625266]
[1642585595170,13.44485785,3084.6,3084.4,0.00625266]
[1642585595368,12.08209396,3084.5,3084.4,0.00625266]
[1642585596374,5.74444396,3084.5,3084.2,0.0073895]
[1642585596572,5.74444396,3084.5,3083.9,0.00909477]
[1642585596573,3.56833394,3084.4,3083.9,0.00909477]
[1642585596777,0.81079,3084.5,3084.1,0.00795793]
[1642585597072,0.81079,3084.5,3083.9,0.00909477]
[1642585597472,0.81079,3084.5,3084.1,0.81083]
[1642585597675,1.75118,3084.4,3083.9,0.00909477]
[1642585597874,1.75118,3084.4,3084.2,0.0073895]
[1642585598073,0.3,3084.3,3083.9,0.00909477]
[1642585598573,0.3,3084.3,3084.0,0.81088]
[1642585599013,0.3,3084.3,3084.1,0.00795793]
[1642585600416,3.5,3084.3,3084.1,0.00795793]
[1642585601220,7.20962844,3084.2,3084.1,0.00795793]
[1642585601424,4.85,3084.2,3084.1,0.00795793]
[1642585601723,6.471914,3084.2,3083.9,0.00909477]
[1642585602126,8.80535241,3084.2,3083.8,0.81097]
[1642585602324,4.67989422,3084.1,3083.8,0.81097]
[1642585602566,4.67989422,3084.1,3083.9,0.00909477]
[1642585602567,0.1297,3084.0,3083.9,0.00909477]
[1642585602768,1.92197,3084.1,3083.9,0.00909477]
[1642585603366,1.62197,3084.1,3083.9,0.00909477]
[1642585603768,0.81096,3084.2,3084.0,2.08194882]
[1642585604167,0.81096,3084.2,3084.1,0.00795793]
[1642585606320,1.11096,3084.2,3084.1,0.00795793]
[1642585606719,3.2,3084.3,3084.1,0.00795793]
[1642585606720,3.2,3084.3,3084.1,2.37395071]
[1642585606924,3.2,3084.3,3084.1,2.84195071]
[1642585607122,3.2,3084.3,3084.2,5.7573895]
[1642585607320,3.2,3084.3,3084.2,4.7573895]
[1642585607918,3.2,3084.3,3084.2,0.0073895]
[1642585609723,5.95770648,3084.3,3084.2,0.0073895]
[1642585610971,3.2,3084.3,3084.2,0.0073895]
[1642585612376,5.95763128,3084.3,3084.2,0.0073895]
[1642585612773,3.2,3084.3,3084.2,0.0073895]
[1642585612972,5.95765841,3084.3,3084.2,0.0073895]
[1642585626579,8.71842884,3084.3,3084.2,0.0073895]
[1642585626780,10.35980168,3084.3,3084.2,0.0073895]
[1642585626978,0.81103,3084.2,3083.8,0.0096632]
[1642585627180,5.88543929,3084.1,3083.8,0.0096632]
[1642585627384,2.75765841,3084.0,3083.8,0.0096632]
[1642585627587,2.75765841,3084.0,3083.4,0.01193689]
[1642585627588,29.78048823,3083.9,3083.4,0.01193689]
[1642585627784,1.64606981,3083.6,3083.0,0.01421058]
[1642585627987,2.94470105,3083.5,3083.0,0.01421058]
[1642585628184,2.75765841,3083.4,3082.9,0.01477901]
[1642585628386,2.33950989,3083.3,3082.9,0.01477901]
[1642585628587,2.88735841,3083.2,3082.9,0.01477901]
[1642585628822,2.75765841,3083.1,3082.9,0.01477901]
[1642585629018,4.68016841,3083.1,3082.9,0.01477901]
[1642585629217,3.56890301,3083.0,3082.8,0.01534743]
[1642585629417,2.75765841,3082.9,3082.8,0.01534743]
[1642585629817,3.05765841,3082.9,3082.8,0.01534743]
[1642585631219,2.75765841,3082.9,3082.8,0.01534743]
[1642585631425,5.12111908,3082.9,3082.8,0.01534743]
[1642585631623,8.62111908,3082.9,3082.8,0.01534743]
[1642585631822,8.62111908,3082.9,3082.7,0.01591585]
[1642585632023,5.06494781,3082.8,3082.7,0.01591585]
[1642585632223,5.87627151,3082.8,3082.7,0.01591585]
[1642585632424,6.68765151,3082.8,3082.7,0.01591585]
[1642585632671,9.58765151,3082.8,3082.7,0.01591585]
[1642585632871,9.58765151,3082.8,3082.4,0.01762112]
[1642585632872,10.69904151,3082.8,3082.4,0.01762112]
[1642585633071,2.75765841,3082.7,3082.4,0.01762112]
[1642585633276,2.46602852,3082.6,3082.4,0.01762112]
[1642585633472,2.75765841,3082.5,3082.3,0.01818955]
[1642585633870,5.03763931,3082.5,3082.3,0.01818955]
[1642585634069,2.75765841,3082.4,3082.3,0.01818955]
[1642585634673,0.81139,3082.5,3082.3,0.01818955]
[1642585635878,0.70139,3082.5,3082.3,0.01818955]
[1642585636074,2.75909895,3082.4,3082.3,0.01818955]
[1642585636722,3.05909895,3082.4,3082.3,0.01818955]
[1642585637123,3.35909895,3082.4,3082.3,0.01818955]
[1642585637321,3.48879895,3082.4,3082.3,0.01818955]
[1642585637725,3.18879895,3082.4,3082.3,0.01818955]
[1642585637926,5.84816784,3082.4,3082.3,0.01818955]
[1642585638327,0.8114601,3082.3,3082.0,0.01989482]
[1642585638531,2.75909895,3082.2,3082.0,0.01989482]
[1642585638726,4.68203835,3082.2,3082.0,0.01989482]
[1642585638927,1.9229394,3082.2,3082.0,0.01989482]
[1642585639126,0.3,3082.2,3081.8,1.64378167]
[1642585639327,0.8114601,3082.3,3081.9,0.02046324]
[1642585639526,1.1114601,3082.3,3081.9,0.02046324]
[1642585640180,0.81138,3082.2,3081.9,0.83190324]
[1642585640580,0.81138,3082.2,3082.0,0.01989482]
[1642585646629,1.11138,3082.2,3082.0,0.01989482]
[1642585647230,4.4797,3082.1,3082.0,0.01989482]
[1642585647430,4.7797,3082.1,3082.0,0.01989482]
[1642585647676,6.81319005,3082.1,3082.0,0.01989482]
[1642585647875,6.78846873,3082.1,3082.0,0.01989482]
[1642585648074,7.08846873,3082.1,3081.9,0.02046324]
[1642585648278,8.71147873,3082.1,3081.9,0.02046324]
[1642585648474,5.52996832,3082.0,3081.9,0.02046324]
[1642585648676,5.65966832,3082.0,3081.9,0.02046324]
[1642585648877,5.95966832,3082.0,3081.9,0.02046324]
[1642585649775,3.6797,3082.0,3081.9,0.02046324]
[1642585650774,0.4297,3082.0,3081.9,0.02046324]
[1642585650976,0.1297,3082.0,3081.9,0.02046324]
[1642585651428,2.8297,3082.0,3081.9,0.02046324]
[1642585651621,0.1297,3082.0,3081.9,0.02046324]
[1642585652021,2.05271,3082.1,3081.9,0.02046324]
[1642585653828,0.81138,3082.2,3081.9,0.02046324]
[1642585654035,3.2,3082.3,3081.9,0.02046324]
[1642585654036,3.2,3082.3,3081.9,0.83164324]
[1642585654428,3.2,3082.3,3082.1,1.6226]
[1642585654828,3.2,3082.3,3082.2,0.01875797]
[1642585655095,4.0113,3082.3,3082.2,0.01875797]
[1642585658392,7.5113,3082.3,3082.2,0.01875797]
[1642585658590,10.27080583,3082.3,3082.2,0.01875797]
[1642585659127,1.1115131,3082.2,3082.0,0.01989482]
[1642585659725,0.3,3082.2,3082.0,0.01989482]
[1642585660125,3.5,3082.3,3082.0,0.01989482]
[1642585660726,4.3113713,3082.3,3082.0,0.01989482]
[1642585661526,4.3113713,3082.3,3082.1,1.62268]
[1642585661926,4.3113713,3082.3,3082.2,0.01875797]
[1642585662225,7.07080859,3082.3,3082.2,0.01875797]
[1642585663681,9.63571911,3082.3,3082.2,0.01875797]
[1642585663883,9.93571911,3082.3,3082.2,0.01875797]
[1642585664182,1.6232,3082.1,3081.6,0.02216851]
[1642585664485,3.57103629,3082.0,3081.6,0.02216851]
[1642585664683,3.18913729,3081.9,3081.6,0.02216851]
[1642585664881,2.75943729,3081.8,3081.6,0.02216851]
[1642585666334,7.1,3081.7,3081.1,1.62319]
[1642585666535,0.03767275,3081.5,3080.8,3.6155]
[1642585666733,3.70099729,3081.4,3081.2,0.0022737]
[1642585667032,8.25943729,3081.3,3081.2,0.0022737]
[1642585667428,8.26030911,3081.3,3080.7,0.00511581]
[1642585667628,2.76030911,3081.2,3080.7,0.00511581]
[1642585667829,3.57200911,3081.2,3080.7,0.00511581]
[1642585668028,2.76030911,3081.1,3080.7,0.00511581]
[1642585668231,3.06030911,3081.1,3080.7,0.00511581]
[1642585668428,2.7605146,3081.0,3080.7,0.00511581]
[1642585668628,0.3,3081.1,3080.8,0.81174]
[1642585668830,2.76049853,3081.0,3080.8,0.81174]
[1642585669130,2.42766522,3081.6,3080.9,0.00397897]
[1642585669131,2.5365671,3081.6,3080.9,0.00397897]
[1642585669331,2.76035699,3081.5,3080.9,0.00397897]
[1642585669536,2.76035699,3081.4,3080.9,0.00397897]
[1642585669731,2.76035699,3081.4,3081.0,0.81157]
[1642585669930,4.68360239,3081.4,3081.0,0.81157]
[1642585670181,2.76035699,3081.3,3081.1,0.00284212]
[1642585670380,2.89015699,3081.3,3081.1,0.00284212]
[1642585670580,2.76035699,3081.2,3081.1,0.00284212]
[1642585670781,2.76035699,3081.3,3081.1,0.00284212]
[1642585671987,5.96035699,3081.3,3081.1,0.00284212]
[1642585672189,2.76035699,3081.2,3081.1,0.00284212]
[1642585672584,3.06035699,3081.2,3081.1,0.00284212]
[1642585674242,3.06035699,3081.2,3080.9,0.00397897]
[1642585674243,0.8116946,3081.1,3080.9,0.00397897]
[1642585674441,2.76035699,3081.0,3080.9,0.00397897]
[1642585674745,3.06035699,3081.0,3080.9,0.00397897]
[1642585675642,3.06035699,3081.0,3080.7,0.81683581]
[1642585675844,3.57210999,3080.9,3080.7,0.00511581]
[1642585676042,3.57210999,3080.9,3080.8,0.00454739]
[1642585676043,0.811753,3080.9,3080.8,0.00454739]
[1642585676243,0.811753,3080.9,3080.7,0.00511581]
[1642585676651,3.06065565,3080.8,3080.7,0.00511581]
[1642585676850,4.81418665,3080.8,3080.7,0.00511581]
[1642585677048,4.81418665,3080.8,3080.5,0.00625266]
[1642585677252,3.57251565,3080.7,3080.5,0.00625266]
[1642585677447,0.81186,3080.7,3080.5,0.00625266]
[1642585677672,1.11186,3080.7,3080.5,0.00625266]
[1642585678475,1.9237239,3080.7,3080.5,0.00625266]
[1642585678876,1.9237239,3080.7,3080.4,0.00682108]
[1642585679278,1.1118639,3080.7,3080.4,0.00682108]
[1642585680281,1.9236639,3080.7,3080.4,0.00682108]
[1642585680885,0.3,3080.7,3080.4,2.31467458]
[1642585681103,0.3,3080.9,3080.4,3.12629458]
[1642585681324,0.4298,3081.2,3080.5,0.00625266]
[1642585681533,2.76062199,3081.1,3080.5,0.00625266]
[1642585681728,3.06062199,3081.1,3080.5,0.00625266]
[1642585681927,2.76062199,3081.0,3080.5,0.00625266]
[1642585682128,2.76062199,3080.9,3080.5,0.00625266]
[1642585682328,2.76062199,3080.9,3080.3,2.39039891]
[1642585682329,4.4117338,3080.8,3080.3,0.1298]
[1642585682539,4.4117338,3080.8,3079.8,0.1298]
[1642585682540,2.89042199,3080.7,3079.8,0.1298]
[1642585682732,0.13093685,3080.7,3079.8,0.5978]
[1642585682929,0.43093685,3080.7,3080.1,0.00227369]
[1642585683230,2.76096618,3080.6,3080.2,1.62356]
[1642585683429,3.06096618,3080.6,3080.2,1.62356]
[1642585683629,1.9236472,3080.6,3080.3,0.00113685]
[1642585685377,2.76102414,3080.5,3080.3,0.00113685]
[1642585685575,1.1117872,3080.6,3080.3,0.81290685]
[1642585685773,0.3,3080.6,3080.3,0.81290685]
[1642585685975,2.76096469,3080.5,3080.3,0.81290685]
[1642585686176,0.43093685,3080.7,3080.3,0.81290685]
[1642585686378,0.13093685,3080.7,3080.3,0.81290685]
[1642585686780,3.57271942,3080.6,3080.3,0.81290685]
[1642585686979,0.3,3080.5,3080.3,0.81290685]
[1642585689724,0.6,3080.5,3080.3,0.81290685]
[1642585690228,0.6,3080.5,3080.3,0.00113685]
[1642585691729,0.3,3080.5,3080.3,0.00113685]
[1642585692581,7.46104962,3080.4,3080.3,0.00113685]
[1642585692779,8.40282962,3080.4,3080.3,0.00113685]
[1642585692973,9.21479962,3080.4,3080.0,0.00284212]
[1642585693175,0.1298,3080.3,3080.0,0.00284212]
[1642585693575,0.4298,3080.3,3080.0,0.00284212]
[1642585693874,0.4298,3080.3,3079.8,0.00397896]
[1642585695476,2.76118133,3080.2,3079.8,0.00397896]
[1642585695674,3.57317253,3080.2,3079.8,0.00397896]
[1642585695875,0.8119912,3080.2,3079.8,0.00397896]
[1642585696075,0.3,3080.1,3079.8,0.00397896]
[1642585696321,0.3,3080.1,3079.7,0.00454739]
[1642585696527,1.11199,3080.1,3079.7,2.40740663]
[1642585696725,1.11199,3080.1,3079.7,0.00454739]
[1642585696928,0.3,3080.0,3079.8,0.00397896]
[1642585697125,0.3,3080.0,3079.8,0.81198]
[1642585697525,0.3,3080.0,3079.9,0.00341054]
[1642585698829,1.6239738,3079.9,3079.7,0.00454739]
[1642585699030,0.3,3079.8,3079.7,0.00454739]
[1642585699232,0.4298,3079.8,3079.7,0.00454739]
[1642585699431,0.4298,3079.8,3079.6,0.00511581]
[1642585699631,0.3,3079.8,3079.6,0.00511581]
[1642585700078,0.4298,3079.9,3079.5,0.00568423]
[1642585700272,0.3,3079.9,3079.5,0.00568423]
[1642585700477,0.1298,3080.2,3079.4,0.00625266]
[1642585700672,0.3,3080.2,3079.5,0.94182]
[1642585700871,1.6238505,3080.3,3079.5,3.2948078]
[1642585701071,0.3,3080.3,3079.6,0.00511581]
[1642585701271,0.1298,3080.2,3079.6,0.00511581]
[1642585702174,0.1298,3080.2,3079.6,0.81699581]
[1642585702375,0.8118816,3080.1,3079.6,0.81699581]
[1642585702576,0.8118816,3080.1,3079.7,0.00454739]
[1642585702577,1.1118816,3080.1,3079.7,0.00454739]
[1642585702776,0.3,3080.1,3079.8,1.62366]
[1642585703176,0.1298,3080.6,3080.0,0.81183]
[1642585703379,3.57300348,3080.5,3080.0,0.81183]
[1642585703578,0.8118573,3080.2,3079.9,0.00341054]
[1642585703828,0.3,3080.1,3079.9,0.00341054]
[1642585704024,0.3,3080.1,3079.6,1.62900581]
[1642585704225,0.3,3080.1,3079.7,0.00454739]
[1642585704424,0.94178,3080.2,3079.8,0.81197]
[1642585704626,0.3,3080.1,3079.8,0.81197]
[1642585704824,0.3,3080.1,3079.9,0.00341054]
[1642585705426,4.3119795,3080.1,3079.9,0.00341054]
[1642585705632,0.3,3080.0,3079.9,0.00341054]
[1642585706026,3.5,3080.1,3079.9,1.62702054]
[1642585706430,3.5,3080.1,3080.0,0.00284212]
[1642585708977,3.2,3080.1,3080.0,0.00284212]
[1642585710981,3.5,3080.1,3080.0,0.00284212]
[1642585712030,3.5,3080.1,3080.0,2.41039111]
[1642585712430,3.5,3080.1,3080.0,0.00284212]
[1642585715083,3.5,3080.1,3080.0,0.47084212]
[1642585715478,3.5,3080.1,3080.0,2.82352231]
[1642585716078,3.5,3080.1,3080.0,0.47084212]
[1642585718184,3.2,3080.1,3080.0,0.47084212]
[1642585718484,3.5,3080.1,3080.0,0.47084212]
[1642585718683,3.5,3080.1,3080.0,4.92084212]
[1642585719324,3.5,3080.1,3080.0,0.47084212]
[1642585720726,6.26094291,3080.1,3080.0,0.47084212]
[1642585721631,3.5,3080.1,3080.0,4.52084212]
[1642585723076,3.5,3080.1,3080.0,5.52084212]
[1642585724079,3.2,3080.1,3080.0,5.52084212]
[1642585724275,0.1298,3080.6,3080.0,5.52084212]
[1642585724479,2.46474023,3081.6,3080.4,0.01261902]
[1642585724680,0.1298,3081.8,3080.5,0.05351333]
[1642585724877,0.00341054,3081.1,3080.6,7.26303]
[1642585725078,0.00341054,3081.1,3080.7,1.468]
[1642585725278,4.04892905,3081.8,3080.8,0.1298]
[1642585725279,0.00284212,3081.0,3080.8,0.1298]
[1642585725477,0.00284212,3081.0,3080.9,7.568]
[1642585725680,3.29630037,3082.2,3081.3,0.81141]
[1642585725681,1.77586981,3081.9,3081.3,0.81141]
[1642585725878,0.1298,3081.9,3081.3,1.27941]
[1642585726078,0.00341054,3081.6,3081.3,1.27941]
[1642585726532,0.00284211,3081.5,3081.3,1.27941]
[1642585726931,0.00227369,3081.4,3081.3,1.27941]
[1642585727531,0.00227369,3081.4,3081.3,4.72941]
[1642585727932,0.00227369,3081.4,3081.3,5.72941]
[1642585732886,3.20227369,3081.4,3081.3,5.72941]
[1642585733826,3.20227369,3081.4,3081.3,1.81141]
[1642585734026,3.20227369,3081.4,3081.3,0.81141]
[1642585734430,3.20227369,3081.4,3081.3,4.52941]
[1642585734628,3.20227369,3081.4,3081.3,5.52941]
[1642585735031,3.20227369,3081.4,3081.3,2.27941]
[1642585735428,3.20227369,3081.4,3081.3,1.27941]
[1642585735628,3.20227369,3081.4,3081.3,2.27941]
[1642585735827,3.20227369,3081.4,3081.3,1.27941]
[1642585736030,3.50227369,3081.4,3081.3,0.468]
[1642585736229,3.63207369,3081.4,3081.3,0.468]
[1642585736632,3.63207369,3081.4,3081.1,2.90281]
[1642585736633,3.63207369,3081.4,3081.1,1.28]
[1642585736835,3.93207369,3081.4,3080.8,0.1298]
[1642585737041,3.13897849,3081.3,3080.8,0.1298]
[1642585737236,1.2414798,3081.2,3080.8,0.1298]
[1642585737435,0.3,3081.1,3080.8,0.1298]
[1642585737683,0.1298,3081.0,3080.8,0.1298]
[1642585737884,0.4298,3081.1,3080.8,0.1298]
[1642585738086,0.00113684,3081.2,3080.8,0.1298]
[1642585738285,0.00113684,3081.2,3080.8,0.5978]
[1642585738488,0.00113684,3081.2,3080.8,3.03245]
[1642585738788,0.00113684,3081.2,3080.8,2.22093]
[1642585739187,0.00113684,3081.2,3080.8,3.22093]
[1642585739596,0.00113684,3081.2,3080.8,4.71994688]
[1642585740192,0.00113684,3081.2,3080.8,2.22093]
[1642585740590,0.00113684,3081.2,3080.8,2.09113]
[1642585741829,0.81269514,3081.2,3080.8,3.09113]
[1642585742028,0.3,3081.1,3080.8,3.09113]
[1642585743831,0.3,3081.1,3080.8,2.09113]
[1642585744631,2.7604845,3081.0,3080.8,2.09113]
[1642585746588,2.7604845,3081.0,3080.9,8.61744364]
[1642585746787,3.2,3081.4,3081.0,7.1]
[1642585746988,3.2,3081.4,3081.1,0.4779794]
[1642585747184,3.2,3081.4,3081.2,0.13819997]
[1642585747383,0.0001,3081.4,3081.3,7.568]
[1642585747590,1.64606981,3082.5,3081.6,1.68301684]
[1642585747785,1.64606981,3082.5,3081.8,0.81117]
[1642585748084,1.64606981,3082.5,3081.7,2.09033]
[1642585748085,1.64606981,3082.7,3081.9,0.468]
[1642585748285,1.64606981,3082.7,3082.0,0.468]
[1642585748486,0.00795793,3082.6,3082.1,0.468]
[1642585748686,0.00795793,3082.6,3082.2,0.468]
[1642585748934,0.00738951,3082.5,3082.2,1.27916]
[1642585749134,0.00738951,3082.5,3082.2,1.40886]
[1642585749333,0.00682109,3082.4,3082.2,1.40886]
[1642585749735,0.00625266,3082.3,3082.2,0.5977]
[1642585750333,0.00625266,3082.3,3082.2,4.9477]
[1642585750535,0.00625266,3082.3,3082.2,5.9477]
[1642585750734,0.00625266,3082.3,3082.2,6.75886]
[1642585751838,0.00625266,3082.3,3082.2,1.5977]
[1642585752439,0.00625266,3082.3,3082.2,0.5977]
[1642585753080,3.20625266,3082.3,3082.2,0.5977]
[1642585753277,3.50625266,3082.3,3082.2,0.5977]
[1642585754077,0.30625266,3082.3,3082.2,0.5977]
[1642585754977,0.00625266,3082.3,3082.2,0.468]
[1642585755380,0.30625266,3082.3,3082.2,0.468]
[1642585757432,0.30625266,3082.3,3082.2,1.468]
[1642585759038,0.30625266,3082.3,3082.2,0.468]
[1642585759235,0.30625266,3082.3,3082.2,1.468]
[1642585761482,0.30625266,3082.3,3082.2,0.468]
[1642585761683,0.30625266,3082.3,3082.2,1.468]
[1642585762485,0.30625266,3082.3,3082.2,0.468]
[1642585762686,0.30625266,3082.3,3082.2,1.468]
[1642585763931,0.50625266,3082.3,3082.2,1.468]
[1642585766134,0.50625266,3082.3,3082.2,4.868]
[1642585766739,3.26562785,3082.3,3082.2,4.868]
[1642585767338,3.26562785,3082.3,3082.2,1.468]
[1642585768392,2.96562785,3082.3,3082.2,1.468]
[1642585768593,2.96562785,3082.3,3082.2,1.768]
[1642585768791,0.1297,3082.8,3082.3,7.1]
[1642585768990,0.1297,3082.8,3082.5,2.43257]
[1642585769189,0.0022737,3082.7,3082.6,0.5977]
[1642585769390,0.0022737,3082.7,3082.6,1.87708]
[1642585769589,4.89232789,3083.7,3082.6,1.87708]
[1642585769590,2.46384779,3083.5,3082.6,3.98792]
[1642585769792,2.46384779,3083.5,3083.0,1.10837963]
[1642585769793,0.00682108,3083.5,3083.0,1.10837963]
[1642585769993,0.00625266,3083.4,3083.1,1.27889]
[1642585770192,0.00625266,3083.4,3083.2,1.62179]
[1642585770394,0.00568424,3083.3,3083.2,1.62179]
[1642585771334,0.00568424,3083.3,3083.2,6.99339]
[1642585771537,0.00568424,3083.3,3083.2,7.99339]
[1642585771937,0.00568424,3083.3,3083.2,4.24339]
[1642585772139,0.00568424,3083.3,3083.2,2.62179]
[1642585772537,0.00568424,3083.3,3083.2,3.08979]
[1642585772739,0.00568424,3083.3,3083.2,2.08979]
[1642585772941,0.00568424,3083.3,3083.2,0.468]
[1642585774640,0.66767504,3083.1,3083.0,1.27921]
[1642585775095,0.67222243,3083.1,3083.0,1.27921]
[1642585775985,0.67222243,3083.1,3083.0,2.27921]
[1642585776186,0.67222243,3083.1,3083.0,1.27921]
[1642585776390,0.67222243,3083.1,3083.0,2.27921]
[1642585776989,0.67222243,3083.1,3083.0,1.27921]
[1642585777188,0.67222243,3083.1,3083.0,2.27921]
[1642585779837,0.67222243,3083.1,3083.0,3.55816]
[1642585781237,0.67222243,3083.1,3083.0,2.87691]
[1642585781646,0.67222243,3083.1,3083.0,2.74721]
[1642585781840,0.67222243,3083.1,3083.0,1.74721]
[1642585782042,4.07222243,3083.1,3083.0,1.74721]
[1642585782243,8.18167592,3083.1,3083.0,1.27921]
[1642585782442,4.15192243,3083.1,3083.0,1.27921]
[1642585783292,0.75192243,3083.1,3083.0,1.27921]
[1642585785692,0.75192243,3083.1,3082.6,1.62217]
[1642585785891,0.9408861,3083.0,3082.6,1.62217]
[1642585786093,0.3,3082.9,3082.6,1.62217]
[1642585786334,0.30341054,3082.9,3082.6,1.62217]
[1642585786539,0.00284212,3082.8,3082.6,1.62217]
[1642585786942,0.30284212,3082.8,3082.6,1.62217]
[1642585787139,0.00284212,3082.8,3082.6,1.62217]
[1642585787938,0.30284212,3082.8,3082.6,1.62217]
[1642585788140,0.00284212,3082.8,3082.6,1.62217]
[1642585790687,0.81395982,3082.8,3082.6,1.62217]
[1642585790888,2.75903257,3082.7,3082.6,1.62217]
[1642585794637,2.75903257,3082.7,3082.6,2.43323]
[1642585797037,2.75903257,3082.7,3082.6,1.62217]
[1642585798583,2.75903257,3082.7,3082.6,3.97661943]
[1642585798783,2.75903257,3082.7,3082.6,7.12661943]
[1642585798983,2.75903257,3082.7,3082.6,7.59461943]
[1642585799183,2.75903257,3082.7,3082.6,4.44461943]
[1642585801541,0.00284212,3082.8,3082.6,4.44461943]
[1642585801741,0.00284212,3082.8,3082.6,4.57431943]
[1642585801942,2.76187469,3082.8,3082.6,4.57431943]
[1642585802141,2.75903257,3082.7,3082.6,4.57431943]
[1642585802541,0.00284212,3082.8,3082.6,5.38523943]
[1642585802943,2.76187469,3082.8,3082.6,5.38523943]
[1642585803141,2.75903257,3082.7,3082.6,5.38523943]
[1642585803342,0.00284212,3082.8,3082.6,5.38523943]
[1642585804545,0.00284212,3082.8,3082.6,6.19611183]
[1642585804748,2.75903257,3083.0,3082.7,7.4]
[1642585804954,2.75903257,3083.0,3082.8,1.40845]
[1642585805182,0.61767504,3083.1,3082.9,8.37927]
[1642585805384,0.61767504,3083.1,3083.0,5.5977]
[1642585805785,0.61767504,3083.1,3083.0,6.5977]
[1642585806082,0.61767504,3083.1,3083.0,1.5977]
[1642585806487,0.61767504,3083.1,3083.0,2.40849]
[1642585810740,0.61767504,3083.1,3083.0,2.70849]
[1642585811040,0.61767504,3083.1,3083.0,2.27879]
[1642585811842,0.61767504,3083.1,3083.0,1.27879]
[1642585812042,0.61767504,3083.1,3083.0,0.468]
[1642585813089,0.61767504,3083.1,3082.9,2.90081]
[1642585813491,0.00113685,3083.0,3082.9,2.90081]
[1642585813691,0.00113685,3083.0,3082.9,1.27927]
[1642585817553,1.7738285,3083.0,3082.9,1.27927]
[1642585819155,1.7738285,3083.0,3082.9,4.47927]
[1642585819556,1.7738285,3083.0,3082.9,3.2]
[1642585819958,0.13083685,3083.0,3082.9,3.2]
[1642585821192,1.77996649,3083.0,3082.9,3.2]
[1642585822093,0.13083685,3083.0,3082.9,3.2]
[1642585823096,0.13083685,3083.0,3082.9,3.19264354]
[1642585823693,1.77996649,3083.0,3082.9,3.19264354]
[1642585823934,0.00113685,3083.0,3082.9,3.19264354]
[1642585825540,2.75987331,3083.0,3082.9,3.19264354]
[1642585827694,4.40900295,3083.0,3082.9,3.19264354]